bitfinex/quotes_BTCUSD_20251219
["timestamp","ask_amount","ask_price","bid_price","bid_amount"]
[1766179240909,0.49969,88049.0,88040.0,0.54239847]
[1766179241115,0.51361061,88050.0,88041.0,0.54239834]
[1766179241310,0.51361061,88050.0,88041.0,0.53104]
[1766179241520,0.51361061,88050.0,88041.0,0.54239834]
[1766179241728,0.51361061,88050.0,88041.0,0.49258834]
[1766179241934,0.51361061,88050.0,88042.0,0.53104]
[1766179242147,0.51361061,88050.0,88042.0,0.54239821]
[1766179242381,0.5,88050.0,88045.0,0.01135782]
[1766179242531,0.5,88050.0,88046.0,0.53104]
[1766179244494,0.5,88050.0,88045.0,0.48123]
[1766179245068,0.5,88050.0,88041.0,0.53104]
[1766179245470,0.5,88050.0,88043.0,0.48123]
[1766179245727,0.5,88050.0,88044.0,0.53104]
[1766179247391,0.5,88050.0,88044.0,0.54239795]
[1766179249570,0.00199998,88100.0,88042.0,0.00572]
[1766179249724,0.04548,88086.0,88069.0,0.01135473]
[1766179249900,0.00572,88081.0,88070.0,0.53104]
[1766179250105,0.00036081,88082.0,88073.0,0.48123]
[1766179250306,0.00572,88081.0,88074.0,0.53104]
[1766179250529,0.00572,88080.0,88074.0,0.53104]
[1766179250905,0.00036081,88082.0,88074.0,0.53104]
[1766179251126,0.00572,88081.0,88074.0,0.53104]
[1766179251329,0.00036081,88082.0,88074.0,0.53104]
[1766179251538,0.00608081,88082.0,88074.0,0.53104]
[1766179251735,0.00608081,88082.0,88075.0,0.53104]
[1766179252687,0.00036081,88082.0,88075.0,0.53104]
[1766179252845,0.00608081,88082.0,88075.0,0.53104]
[1766179253784,0.00036081,88082.0,88075.0,0.53104]
[1766179253951,0.00608081,88082.0,88075.0,0.53104]
[1766179258555,0.00608081,88082.0,88074.0,0.48123]
[1766179258771,0.01361061,88080.0,88071.0,0.53104]
[1766179259292,0.49213061,88080.0,88067.0,0.00572]
[1766179259649,0.49213061,88080.0,88067.0,0.54811499]
[1766179260206,0.49213061,88080.0,88067.0,0.53676]
[1766179260411,0.49213061,88080.0,88062.0,0.48123]
[1766179260613,0.49213061,88080.0,88062.0,0.00568]
[1766179260785,0.49213061,88080.0,88063.0,0.0113555]
[1766179261609,0.49213061,88080.0,88064.0,0.01135537]
[1766179261811,0.49213061,88080.0,88065.0,0.54239524]
[1766179261994,0.49213061,88080.0,88065.0,0.53104]
[1766179266326,0.47829,88078.0,88065.0,0.53104]
[1766179266478,0.47829,88076.0,88065.0,0.53104]
[1766179271751,0.00568,88075.0,88067.0,0.53687]
[1766179271960,0.00568,88075.0,88067.0,0.54822499]
[1766179272342,0.00568,88075.0,88067.0,0.01135499]
[1766179272542,0.00568,88075.0,88068.0,0.53687]
[1766179275062,0.00568,88080.0,88071.0,0.48465]
[1766179275266,0.00568,88080.0,88072.0,0.53687]
[1766179278683,0.47829,88079.0,88068.0,0.53687]
[1766179279122,0.47829,88079.0,88065.0,0.00568]
[1766179279713,0.47829,88079.0,88065.0,0.51734]
[1766179280719,0.47829,88079.0,88066.0,0.51166]
[1766179285027,0.47829,88079.0,88065.0,0.49823]
[1766179285231,0.47829,88079.0,88063.0,0.51734]
[1766179285431,0.47829,88079.0,88063.0,0.50391]
[1766179285633,0.47829,88079.0,88064.0,0.51166]
[1766179285840,0.47829,88079.0,88064.0,0.52301537]
[1766179286265,0.47829,88079.0,88065.0,0.51166]
[1766179290481,0.47829,88079.0,88064.0,0.49823]
[1766179290897,0.48964344,88079.0,88064.0,0.49823]
[1766179291114,0.47829,88079.0,88064.0,0.49823]
[1766179291251,0.48865,88066.0,88049.0,0.51166]
[1766179291455,0.48865,88066.0,88052.0,0.51166]
[1766179291650,0.48865,88066.0,88053.0,0.51166]
[1766179291858,0.48865,88066.0,88054.0,0.51166]
[1766179292472,0.01929061,88067.0,88055.0,0.49823]
[1766179292807,0.01929061,88067.0,88056.0,0.51166]
[1766179293686,0.01929061,88067.0,88056.0,0.5230164]
[1766179293841,0.01929061,88067.0,88056.0,0.51166]
[1766179295956,0.01929061,88067.0,88057.0,0.49277]
[1766179296178,0.00568,88067.0,88058.0,0.49277]
[1766179296554,0.00568,88067.0,88057.0,0.46509]
[1766179296555,0.00568,88067.0,88061.0,0.49277]
[1766179297471,0.00568,88069.0,88061.0,0.49277]
[1766179297812,0.00568,88069.0,88062.0,0.50412563]
[1766179297955,0.00568,88069.0,88062.0,0.49277]
[1766179299684,0.00568,88069.0,88063.0,0.49277]
[1766179301994,0.00568,88069.0,88064.0,0.49277]
[1766179302444,0.00568,88069.0,88064.0,0.50412537]
[1766179302644,0.00568,88069.0,88064.0,0.49277]
[1766179305137,0.00568,88069.0,88057.0,0.49277]
[1766179305374,0.00568,88069.0,88058.0,0.49277]
[1766179305574,0.00568,88069.0,88060.0,0.49277]
[1766179310116,0.46813,88068.0,88052.0,0.53824498]
[1766179310247,0.01361061,88067.0,88054.0,0.95786]
[1766179310442,0.01361061,88067.0,88057.0,0.95786]
[1766179310666,0.01361061,88067.0,88059.0,0.49277]
[1766179311248,0.00568,88069.0,88059.0,0.46509]
[1766179311452,0.00568,88069.0,88060.0,0.49277]
[1766179312097,0.01361061,88067.0,88060.0,0.49277]
[1766179316817,0.01361061,88067.0,88058.0,0.49277]
[1766179319538,0.01929061,88067.0,88058.0,0.49277]
[1766179321170,0.00568,88067.0,88058.0,0.49277]
[1766179321617,0.01929061,88067.0,88052.0,0.01361061]
[1766179321842,0.01135782,88045.0,88023.0,0.46509]
[1766179322073,0.47381,88044.0,88023.0,0.07384375]
[1766179322257,0.46813,88038.0,88024.0,0.46509]
[1766179322427,0.46813,88036.0,88023.0,0.00568]
[1766179322635,0.46813,88036.0,88024.0,0.50413053]
[1766179322964,0.46813,88036.0,88026.0,0.01136027]
[1766179323266,0.46813,88036.0,88027.0,0.49277]
[1766179324400,0.46819547,88036.0,88027.0,0.49277]
[1766179325137,6.547e-05,88036.0,88029.0,0.06840727]
[1766179325362,0.47837,88052.0,88038.0,0.47987]
[1766179325560,6.55e-05,88052.0,88040.0,0.47987]
[1766179325824,6.55e-05,88052.0,88046.0,0.47987]
[1766179326060,0.47837,88060.0,88045.0,0.01135782]
[1766179326061,0.00568,88057.0,88053.0,0.47987]
[1766179326287,0.2614,88066.0,88053.0,0.47987]
[1766179326288,0.00568,88060.0,88053.0,0.47987]
[1766179327694,0.47837,88066.0,88053.0,0.47987]
[1766179327896,0.00568,88065.0,88053.0,0.47987]
[1766179328206,0.48405,88065.0,88053.0,0.47987]
[1766179328840,0.47837,88065.0,88053.0,0.47987]
[1766179329242,0.01361061,88067.0,88056.0,0.4912264]
[1766179329438,0.00568,88066.0,88058.0,0.47987]
[1766179329650,0.00568,88065.0,88058.0,0.47987]
[1766179330395,0.00568,88065.0,88057.0,0.93354]
[1766179331644,0.01135473,88069.0,88057.0,0.93354]
[1766179331976,0.00568,88068.0,88057.0,0.93354]
[1766179334324,0.00568,88068.0,88059.0,0.01135602]
[1766179334522,0.00568,88068.0,88057.0,0.45367]
[1766179334523,0.00568,88068.0,88060.0,0.47987]
[1766179336083,0.00568,88068.0,88062.0,0.47987]
[1766179337256,0.00568,88068.0,88061.0,0.45367]
[1766179337978,0.00568,88068.0,88053.0,0.45935]
[1766179338156,0.47837,88067.0,88054.0,0.47987]
[1766179338328,0.01361061,88066.0,88055.0,0.47987]
[1766179338532,0.49198061,88066.0,88055.0,0.47987]
[1766179338917,0.49198061,88066.0,88054.0,0.45367]
[1766179339116,0.50333573,88066.0,88054.0,0.45367]
[1766179339315,0.49198061,88066.0,88054.0,0.45367]
[1766179339502,0.49198061,88066.0,88055.0,0.45224]
[1766179342085,0.45236,88065.0,88055.0,0.45224]
[1766179344125,0.45236,88065.0,88054.0,0.45367]
[1766179344378,0.45236,88065.0,88053.0,0.00568]
[1766179344681,0.45236,88065.0,88053.0,0.45792]
[1766179346077,0.45236,88065.0,88054.0,0.45224]
[1766179348694,0.46371524,88065.0,88054.0,0.45224]
[1766179348917,0.45236,88065.0,88053.0,0.00568]
[1766179349071,0.45236,88065.0,88053.0,0.45792]
[1766179351267,0.45236,88065.0,88055.0,0.45224]
[1766179351607,0.45236,88065.0,88056.0,0.45224]
[1766179352337,0.45236,88065.0,88055.0,0.47139]
[1766179354766,0.00568,88070.0,88060.0,0.47887]
[1766179354979,0.00568,88070.0,88061.0,0.44146]
[1766179355186,0.48269473,88069.0,88055.0,0.44146]
[1766179355407,0.47134,88066.0,88055.0,0.44146]
[1766179356067,0.47134,88066.0,88056.0,0.44146]
[1766179356301,0.47134,88066.0,88057.0,0.44146]
[1766179358070,0.01361061,88067.0,88058.0,0.44146]
[1766179358601,0.00568,88066.0,88058.0,0.44146]
[1766179359121,0.01361061,88067.0,88058.0,0.44146]
[1766179359324,0.00568,88066.0,88059.0,0.47887]
[1766179359545,0.00568,88066.0,88060.0,0.44146]
[1766179359747,0.47134,88072.0,88060.0,0.45281589]
[1766179359911,0.00568,88071.0,88061.0,0.44146]
[1766179360108,0.47134,88072.0,88063.0,0.0113555]
[1766179360366,0.47134,88081.0,88066.0,0.47887]
[1766179360572,0.03013185,88080.0,88071.0,0.44146]
[1766179360766,0.00568,88080.0,88071.0,0.44146]
[1766179360965,0.00036051,88081.0,88071.0,0.44146]
[1766179361124,0.01361061,88080.0,88071.0,0.44146]
[1766179361541,0.01361061,88080.0,88072.0,0.44146]
[1766179361768,0.00568,88079.0,88072.0,0.44146]
[1766179361975,0.01361061,88080.0,88072.0,0.44146]
[1766179362523,0.00568,88079.0,88072.0,0.44146]
[1766179374067,0.00568,88079.0,88072.0,0.45281434]
[1766179374832,0.00568,88079.0,88074.0,0.01135408]
[1766179375258,0.00036051,88081.0,88076.0,0.01135383]
[1766179375424,5.1e-07,88081.0,88077.0,0.4528137]
[1766179375605,5.1e-07,88081.0,88078.0,0.45281357]
[1766179375811,0.47134,88090.0,88081.0,0.44146]
[1766179376180,0.00568,88099.0,88090.0,0.44146]
[1766179376364,0.00568,88099.0,88092.0,0.44146]
[1766179378562,0.48269099,88098.0,88082.0,0.48455]
[1766179378760,0.47134,88098.0,88083.0,0.44146]
[1766179378915,0.48269099,88098.0,88083.0,0.44146]
[1766179379262,0.47134,88098.0,88083.0,0.44146]
[1766179380315,0.47134,88095.0,88083.0,0.00568]
[1766179380522,0.47134,88093.0,88083.0,0.00568]
[1766179380720,0.47134,88093.0,88078.0,0.01703357]
[1766179381038,0.47134,88093.0,88079.0,0.01135344]
[1766179381568,0.47134,88093.0,88078.0,0.44724811]
[1766179381976,0.47134,88093.0,88080.0,0.77527916]
[1766179382476,0.47134,88093.0,88080.0,1.21673916]
[1766179382690,0.47134,88093.0,88081.0,0.44146]
[1766179386956,0.47134,88093.0,88081.0,0.94146]
[1766179389001,0.01135279,88084.0,88081.0,0.5]
[1766179389202,0.01135279,88084.0,88067.0,0.00568]
[1766179389203,0.49627,88080.0,88067.0,0.00568]
[1766179389376,0.49637801,88080.0,88066.0,0.00568]
[1766179390352,0.50773132,88080.0,88066.0,0.00568]
[1766179390570,0.49637801,88080.0,88066.0,0.00568]
[1766179390977,0.49637801,88080.0,88066.0,0.01703512]
[1766179391189,0.49637801,88080.0,88066.0,0.00568]
[1766179391434,0.49637801,88080.0,88070.0,0.77527916]
[1766179391865,0.49637801,88080.0,88067.0,0.90426]
[1766179392088,0.49637801,88080.0,88068.0,0.44449]
[1766179392740,0.49637801,88080.0,88067.0,0.46545]
[1766179394731,0.49637801,88080.0,88067.0,0.00568]
[1766179395789,0.49637801,88080.0,88067.0,0.45017]
[1766179396335,0.49637801,88080.0,88068.0,0.45977]
[1766179396556,0.49637801,88080.0,88069.0,0.44449]
[1766179396764,0.49637801,88080.0,88069.0,0.45584473]
[1766179397265,0.49637801,88080.0,88069.0,0.44449]
[1766179400897,0.49637801,88080.0,88071.0,0.01135447]
[1766179401142,0.49637801,88080.0,88070.0,0.46154]
[1766179401298,0.49637801,88080.0,88070.0,1.24847043]
[1766179401843,0.49637801,88080.0,88070.0,0.4728946]
[1766179402393,0.00010801,88080.0,88074.0,0.46154]
[1766179402599,0.00010801,88080.0,88075.0,0.46154]
[1766179403042,0.47715,88099.0,88083.0,0.01135292]
[1766179403244,0.00568,88098.0,88085.0,0.46154]
[1766179403470,0.48283,88098.0,88085.0,0.46154]
[1766179406195,0.48283,88098.0,88085.0,0.47289267]
[1766179406965,0.48283,88098.0,88085.0,0.46154]
[1766179407923,0.47715,88087.0,88068.0,0.01135486]
[1766179408229,0.47715,88084.0,88070.0,0.00568]
[1766179408431,0.01135292,88083.0,88070.0,0.00568]
[1766179408603,0.47715,88083.0,88070.0,0.00568]
[1766179408959,0.47715,88081.0,88070.0,0.00568]
[1766179412090,0.47715,88081.0,88068.0,0.00568]
[1766179418010,0.47715,88081.0,88072.0,0.01135434]
[1766179418317,0.00568,88082.0,88073.0,0.45757]
[1766179418568,0.00568,88082.0,88073.0,0.46892421]
[1766179418774,0.00568,88082.0,88073.0,0.45757]
[1766179420147,0.00568,88082.0,88073.0,0.46892421]
[1766179420554,0.00568,88082.0,88073.0,0.45757]
[1766179420864,0.00568,88082.0,88073.0,0.46892421]
[1766179421433,0.00568,88082.0,88073.0,0.45757]
[1766179422102,0.48238,88082.0,88069.0,0.4821]
[1766179425720,0.48238,88082.0,88069.0,0.49345473]
[1766179426146,0.48238,88082.0,88070.0,0.0113546]
[1766179426525,0.48238,88082.0,88069.0,0.49345473]
[1766179426906,0.01135395,88075.0,88052.0,0.45757]
[1766179427116,0.22706372,88081.0,88049.0,0.261258]
[1766179427117,0.01135602,88059.0,88049.0,2.59e-06]
[1766179427318,0.01135615,88058.0,88049.0,2.59e-06]
[1766179427525,0.01135615,88058.0,88042.0,0.00568]
[1766179427526,0.4767,88057.0,88042.0,0.00568]
[1766179427988,0.4767,88057.0,88042.0,0.47460821]
[1766179428155,0.4767,88057.0,88044.0,0.45757]
[1766179430376,0.00568,88058.0,88050.0,0.45757]
[1766179430579,0.00568,88057.0,88050.0,0.45757]
[1766179430702,0.00568,88057.0,88050.0,0.46892718]
[1766179430903,0.00568,88057.0,88050.0,0.45757]
[1766179433947,0.00568,88057.0,88048.0,0.4821]
[1766179435945,0.00568,88057.0,88051.0,0.45757]
[1766179440936,0.01135357,88078.0,88056.0,0.45757]
[1766179441138,0.48238,88077.0,88060.0,1.23314583]
[1766179441362,0.4767,88074.0,88060.0,0.45757]
[1766179441694,0.01135408,88074.0,88060.0,0.45757]
[1766179442020,0.48805447,88071.0,88059.0,0.4821]
[1766179442172,0.00568,88070.0,88059.0,0.4821]
[1766179443215,0.00568,88070.0,88059.0,0.48246051]
[1766179443406,0.00568,88070.0,88059.0,0.94003051]
[1766179443909,0.00568,88070.0,88059.0,0.00036051]
[1766179444113,0.4767,88069.0,88059.0,0.00036051]
[1766179444313,0.4767,88069.0,88060.0,0.43846]
[1766179445066,0.48238,88069.0,88060.0,0.43846]
[1766179447713,0.4767,88069.0,88060.0,0.43846]
[1766179449228,0.4767,88069.0,88059.0,0.00036051]
[1766179449773,0.47388,88068.0,88059.0,0.00036051]
[1766179451332,0.47388,88068.0,88059.0,5.1e-07]
[1766179452783,0.00568,88068.0,88060.0,0.43846]
[1766179453075,0.00568,88068.0,88059.0,5.1e-07]
[1766179453652,0.47388,88068.0,88059.0,5.1e-07]
[1766179455687,0.47388,88068.0,88059.0,0.01135653]
[1766179455889,0.47388,88068.0,88062.0,0.01135563]
[1766179456076,0.47388,88068.0,88061.0,0.01135576]
[1766179456273,0.47388,88068.0,88060.0,0.01135589]
[1766179456527,0.47388,88068.0,88061.0,0.01135576]
[1766179456931,0.47388,88068.0,88062.0,0.01135563]
[1766179457158,0.47388,88068.0,88063.0,0.0113555]
[1766179457504,0.00593458,88081.0,88065.0,0.01135524]
[1766179457696,0.4682,88081.0,88072.0,0.44981434]
[1766179458010,0.04548,88088.0,88077.0,0.43846]
[1766179458011,0.00568,88086.0,88077.0,0.43846]
[1766179458397,0.00568,88085.0,88077.0,0.43846]
[1766179458598,0.00568,88084.0,88077.0,0.43846]
[1766179460503,0.00568,88084.0,88076.0,0.46708]
[1766179460838,0.00593354,88095.0,88082.0,0.01135305]
[1766179461034,0.03053803,88102.0,88082.0,0.01135305]
[1766179461035,0.00568,88094.0,88082.0,0.01135305]
[1766179461234,0.00568,88094.0,88083.0,0.44346]
[1766179462481,0.47517,88094.0,88083.0,0.44346]
[1766179462687,0.46949,88093.0,88078.0,0.44346]
[1766179462885,0.48084163,88093.0,88078.0,0.44346]
[1766179463229,0.46949,88087.0,88075.0,0.46738]
[1766179463634,0.46949,88087.0,88075.0,0.91084]
[1766179465822,0.46949,88087.0,88077.0,0.44346]
[1766179466023,0.46949,88093.0,88078.0,0.46738]
[1766179466324,0.46949,88093.0,88078.0,0.47873357]
[1766179466664,0.46949,88093.0,88079.0,0.01135344]
[1766179468128,0.46949,88093.0,88078.0,0.47873357]
[1766179468274,0.46949,88093.0,88079.0,0.01135344]
[1766179468486,0.52608775,88093.0,88080.0,0.01135331]
[1766179468839,0.52608775,88093.0,88079.0,0.01135344]
[1766179469039,0.52608775,88093.0,88080.0,0.01135331]
[1766179469186,0.46949,88093.0,88079.0,0.01135344]
[1766179469957,0.46949,88093.0,88078.0,0.47873357]
[1766179470297,0.46949,88093.0,88079.0,0.01135344]
[1766179470961,0.46949,88093.0,88080.0,0.01135331]
[1766179471538,0.46949,88093.0,88081.0,0.01135318]
[1766179472025,0.46949,88093.0,88082.0,0.01135305]
[1766179472854,0.46949,88093.0,88083.0,0.01135292]
[1766179473023,0.46949,88093.0,88082.0,0.01135305]
[1766179473223,0.46949,88093.0,88081.0,0.01135318]
[1766179473511,0.46949,88093.0,88082.0,0.01135305]
[1766179473808,0.46949,88093.0,88081.0,0.01135318]
[1766179473944,0.46949,88093.0,88083.0,0.01135292]
[1766179474547,0.00568,88092.0,88083.0,0.01135292]
[1766179475132,0.00568,88092.0,88084.0,0.01135279]
[1766179475331,0.476,88092.0,88084.0,0.01135279]
[1766179475537,0.00568,88091.0,88083.0,0.01135292]
[1766179475858,0.00568,88091.0,88085.0,0.01135267]
[1766179476055,0.00568,88091.0,88084.0,0.01135279]
[1766179476455,0.00568,88091.0,88085.0,0.01135267]
[1766179476777,0.00568,88091.0,88082.0,0.01135305]
[1766179476974,0.00568,88091.0,88085.0,0.01135267]
[1766179477180,0.00568,88091.0,88084.0,0.01135279]
[1766179477717,0.00568,88091.0,88082.0,0.01135305]
[1766179477922,0.00568,88091.0,88083.0,0.01135292]
[1766179478274,0.00568,88091.0,88084.0,0.01135279]
[1766179478716,0.00568,88091.0,88083.0,0.01135292]
[1766179478965,0.00568,88091.0,88082.0,0.01135305]
[1766179479138,0.00568,88091.0,88084.0,0.01135279]
[1766179479337,0.00568,88091.0,88083.0,0.01135292]
[1766179480070,0.00568,88091.0,88082.0,0.41335]
[1766179480275,0.00568,88091.0,88083.0,0.01135292]
[1766179480809,0.00568,88091.0,88084.0,0.01135279]
[1766179481801,0.00568,88091.0,88085.0,0.01135267]
[1766179482129,0.00568,88091.0,88086.0,0.01135254]
[1766179482562,0.476,88102.0,88086.0,0.48146523]
[1766179482762,0.00568,88101.0,88089.0,0.42470215]
[1766179482922,0.00568,88101.0,88089.0,0.41335]
[1766179483255,0.00604044,88101.0,88089.0,0.41335]
[1766179483660,0.48204044,88101.0,88089.0,0.41335]
[1766179484066,0.48204044,88101.0,88089.0,0.42470215]
[1766179484643,0.48204044,88101.0,88089.0,0.41335]
[1766179485285,0.48204044,88101.0,88088.0,0.4515]
[1766179486049,0.00568,88100.0,88090.0,0.01135202]
[1766179486188,0.00568,88100.0,88089.0,0.42470215]
[1766179486395,0.47636044,88101.0,88089.0,0.41335]
[1766179486594,0.00568,88099.0,88089.0,0.41335]
[1766179487055,0.00568,88098.0,88089.0,0.41335]
[1766179487339,0.47636044,88101.0,88090.0,0.01135202]
[1766179487543,0.476,88100.0,88090.0,0.01135202]
[1766179487745,0.00568,88099.0,88090.0,0.01135202]
[1766179487946,0.00568,88098.0,88089.0,0.42470215]
[1766179488153,0.00568,88098.0,88089.0,0.41335]
[1766179488307,0.00568,88098.0,88088.0,0.4515]
[1766179488507,0.476,88097.0,88082.0,0.01135305]
[1766179488702,0.476,88097.0,88084.0,0.01135279]
[1766179489096,0.476,88097.0,88083.0,0.42470292]
[1766179489298,0.476,88097.0,88084.0,0.01135279]
[1766179489492,0.476,88097.0,88083.0,0.42470292]
[1766179491390,0.476,88097.0,88083.0,0.41335]
[1766179494228,0.476,88097.0,88083.0,0.42470292]
[1766179494434,0.476,88097.0,88083.0,0.41335]
[1766179494636,0.476,88097.0,88083.0,0.42470292]
[1766179495566,0.476,88097.0,88086.0,0.01135254]
[1766179495770,0.476,88097.0,88085.0,0.01135267]
[1766179495914,0.476,88097.0,88087.0,0.01135241]
[1766179496113,0.476,88097.0,88088.0,0.01135228]
[1766179497114,0.476,88097.0,88089.0,0.01135215]
[1766179497373,0.476,88097.0,88092.0,0.01135176]
[1766179497786,0.476,88097.0,88091.0,0.01135189]
[1766179498697,0.476,88097.0,88092.0,0.01135176]
[1766179498897,0.476,88097.0,88091.0,0.01135189]
[1766179499442,0.476,88097.0,88089.0,0.01135215]
[1766179499818,0.476,88097.0,88088.0,0.01135228]
[1766179499974,0.476,88097.0,88086.0,0.42470254]
[1766179500174,0.476,88097.0,88086.0,0.48146507]
[1766179500475,0.476,88097.0,88086.0,0.42470254]
[1766179500670,0.476,88097.0,88087.0,0.01135241]
[1766179500894,0.476,88097.0,88091.0,0.01135189]
[1766179501538,0.476,88097.0,88092.0,0.01135176]
[1766179502088,0.476,88097.0,88091.0,0.01135189]
[1766179502281,0.476,88097.0,88090.0,0.01135202]
[1766179502282,0.00568,88098.0,88090.0,0.42470202]
[1766179502509,0.00568,88098.0,88091.0,0.01135189]
[1766179502730,0.00568,88098.0,88095.0,0.06810769]
[1766179502913,4.4e-07,88101.0,88100.0,0.41335]
[1766179504549,4.4e-07,88101.0,88098.0,0.4515]
[1766179506230,4.4e-07,88101.0,88095.0,0.42812]
[1766179506871,0.0002,88140.0,88135.0,0.42812]
[1766179507082,0.00568,88156.0,88147.0,0.4682]
[1766179507254,8.187e-05,88156.0,88153.0,0.01361061]
[1766179507472,1.87e-06,88156.0,88155.0,0.4682]
[1766179507648,0.04544,88166.0,88163.0,0.01134262]
[1766179508030,0.00568,88165.0,88162.0,0.01134275]
[1766179508492,0.00568,88165.0,88160.0,0.01134301]
[1766179508636,0.00568,88165.0,88152.0,0.01134404]
[1766179508855,0.00568,88165.0,88157.0,0.01134339]
[1766179509098,0.52026,88169.0,88157.0,0.01134339]
[1766179509300,0.00568,88168.0,88160.0,0.01134301]
[1766179509498,0.00568,88168.0,88157.0,0.01134339]
[1766179509705,0.00568,88168.0,88159.0,0.01134314]
[1766179509878,0.00568,88168.0,88165.0,0.01134236]
[1766179510336,0.2827,88175.0,88160.0,0.43946301]
[1766179510526,0.05112,88174.0,88160.0,0.43946301]
[1766179510759,0.05112,88174.0,88160.0,0.42812]
[1766179511032,0.2827,88175.0,88160.0,0.42812]
[1766179511218,0.01361061,88171.0,88160.0,0.42812]
[1766179511441,0.01361061,88171.0,88161.0,0.05671442]
[1766179511642,0.00568,88170.0,88160.0,0.43946301]
[1766179511784,0.00568,88170.0,88160.0,1.21448416]
[1766179512122,0.00568,88170.0,88163.0,0.01134262]
[1766179512575,0.00568,88170.0,88164.0,0.01134249]
[1766179512947,0.00568,88170.0,88165.0,0.01134236]
[1766179513319,0.00568,88170.0,88164.0,0.01134249]
[1766179513501,0.00568,88170.0,88163.0,0.01134262]
[1766179513732,0.04544,88178.0,88168.0,0.01134198]
[1766179513940,0.23756,88184.0,88170.0,0.4682]
[1766179514176,0.05112,88178.0,88170.0,0.4682]
[1766179514732,0.23756,88184.0,88170.0,0.4682]
[1766179515052,0.00568,88178.0,88170.0,0.4682]
[1766179515752,0.00251856,88179.0,88170.0,0.4682]
[1766179516095,0.00568,88178.0,88170.0,0.4682]
[1766179516326,0.00251856,88179.0,88170.0,0.4682]
[1766179516540,0.00251856,88179.0,88171.0,0.01134159]
[1766179516765,0.00568,88178.0,88171.0,0.01134159]
[1766179517138,0.00251856,88179.0,88172.0,0.01134146]
[1766179517327,0.00568,88178.0,88172.0,0.01134146]
[1766179517520,0.00568,88178.0,88173.0,0.89632]
[1766179517767,0.0002,88186.0,88168.0,0.78636313]
[1766179517768,0.04544,88189.0,88182.0,0.01134018]
[1766179518030,0.01133748,88203.0,88168.0,0.77502115]
[1766179518031,0.00568,88207.0,88192.0,0.42812]
[1766179518270,0.01133722,88205.0,88197.0,0.89632]
[1766179518479,0.31414863,88194.0,88180.0,0.77502115]
[1766179518640,0.31414863,88194.0,88177.0,0.4682]
[1766179518641,0.31982876,88193.0,88177.0,0.4682]
[1766179518856,0.31982876,88193.0,88180.0,0.77502115]
[1766179518857,0.30849,88193.0,88180.0,0.77502115]
[1766179519216,0.01133992,88184.0,88174.0,0.01361061]
[1766179519417,0.01134044,88180.0,88167.0,0.48199]
[1766179519712,0.01134082,88177.0,88167.0,0.48199]
[1766179519919,0.00568,88176.0,88167.0,0.48199]
[1766179522462,0.01702095,88176.0,88167.0,0.48199]
[1766179522950,0.0567113,88166.0,88159.0,0.48199]
[1766179523149,0.01134275,88162.0,88159.0,8.187e-05]
[1766179523301,0.00568,88161.0,88159.0,8.187e-05]
[1766179532920,0.01134378,88154.0,88142.0,0.03407965]
[1766179533119,0.01134378,88154.0,88092.0,0.01158764]
[1766179533120,0.01361061,88145.0,88122.0,0.44913]
[1766179533322,0.30273,88141.0,88123.0,0.48199]
[1766179533497,0.31407571,88139.0,88123.0,0.48199]
[1766179533734,0.00568,88138.0,88129.0,0.77502115]
[1766179533941,0.00568,88137.0,88130.0,0.93112]
[1766179534547,0.04544,88144.0,88130.0,0.93112]
[1766179534756,0.30273,88146.0,88132.0,0.01134661]
[1766179534950,0.00568,88143.0,88134.0,0.41566]
[1766179535152,0.00568,88142.0,88134.0,0.41566]
[1766179535380,0.00568,88142.0,88137.0,0.47402]
[1766179535605,0.00568,88141.0,88137.0,0.47402]
[1766179535930,0.00568,88140.0,88137.0,0.47402]
[1766179536264,0.32543429,88150.0,88137.0,0.47402]
[1766179536466,0.04544,88148.0,88137.0,0.47402]
[1766179536669,0.01134468,88147.0,88130.0,0.88968]
[1766179536999,0.01134468,88147.0,88131.0,0.41566]
[1766179537171,0.37087455,88148.0,88131.0,0.41566]
[1766179537375,0.35953,88148.0,88131.0,0.41566]
[1766179537575,0.37087455,88148.0,88131.0,0.41566]
[1766179537781,0.35953,88148.0,88131.0,0.41566]
[1766179538208,0.35953,88148.0,88131.0,0.42700674]
[1766179538415,0.35953,88148.0,88131.0,0.41566]
[1766179538633,0.27144,88147.0,88131.0,0.41566]
[1766179538848,0.01134507,88144.0,88131.0,0.41566]
[1766179539098,0.00568,88143.0,88131.0,0.41566]
[1766179539898,0.0170252,88143.0,88121.0,0.01134803]
[1766179540099,0.0170252,88143.0,88119.0,0.47402]
[1766179540100,0.01134623,88135.0,88119.0,0.47402]
[1766179540277,0.31409,88131.0,88114.0,0.90670893]
[1766179540476,0.31409,88131.0,88120.0,0.77442922]
[1766179541362,0.00568,88134.0,88122.0,0.41566]
[1766179541579,0.00568,88134.0,88122.0,0.88968]
[1766179543846,0.00568,88134.0,88122.0,0.47402]
[1766179544024,0.31977,88134.0,88122.0,0.47402]
[1766179544672,0.01134661,88132.0,88122.0,0.47402]
[1766179544818,0.58722,88134.0,88118.0,0.41566]
[1766179545018,0.58722,88134.0,88118.0,0.88968]
[1766179545221,0.59856635,88134.0,88118.0,0.88968]
[1766179545420,0.01134661,88132.0,88118.0,0.88968]
[1766179545683,0.01134648,88133.0,88118.0,0.88968]
[1766179545843,0.01134687,88130.0,88113.0,0.01702906]
[1766179546043,0.01134661,88132.0,88113.0,0.01702906]
[1766179546044,0.31409,88128.0,88113.0,0.89536]
[1766179546246,0.00568,88127.0,88113.0,0.00568]
[1766179546430,0.00568,88127.0,88114.0,0.88968]
[1766179546636,0.00568,88127.0,88113.0,0.00568]
[1766179546854,0.00568,88127.0,88114.0,0.88968]
[1766179547106,0.00568,88127.0,88115.0,0.41566]
[1766179547277,0.00568,88127.0,88115.0,0.88968]
[1766179547478,0.00578795,88127.0,88115.0,0.88968]
[1766179548014,0.00578795,88127.0,88115.0,0.9010288]
[1766179548147,0.00578795,88127.0,88116.0,0.88968]
[1766179548350,0.00578795,88127.0,88117.0,0.88968]